bitfinex/quotes_SOLUSD_20240607
["timestamp","ask_amount","ask_price","bid_price","bid_amount"]
[1717787981129,15.9954,161.72,161.55,25.8]
[1717787981314,22.0053,161.73,161.6,11.4477]
[1717787981514,6.0099,161.73,161.67,2.2884]
[1717787981743,6.0099,161.73,161.68,2.2883]
[1717787981949,6.0099,161.73,161.62,4.5785]
[1717787981950,6.3308,161.8,161.69,2.2882]
[1717787982247,9.72055607,161.79,161.65,2.2888]
[1717787982431,8.6175,161.8,161.66,2.2887]
[1717787982629,2.2869,161.79,161.65,2.2888]
[1717787982834,18.2915,161.79,161.65,2.2888]
[1717787983020,16.0046,161.79,161.69,2.2883]
[1717787983226,6.3308,161.8,161.64,4.5779]
[1717787983438,6.3308,161.8,161.67,2.2884]
[1717787983617,8.6175,161.8,161.67,2.2884]
[1717787983824,2.287,161.78,161.64,2.289]
[1717787984025,2.2872,161.77,161.64,2.289]
[1717787984233,2.287,161.78,161.64,2.289]
[1717787984522,32.0608,161.8,161.59,9.1589]
[1717787984739,6.3308,161.8,161.67,2.2885]
[1717787985040,45.0,161.79,161.68,2.2884]
[1717787985242,45.0,161.79,161.67,2.2886]
[1717787986144,2.2871,161.78,161.65,2.2888]
[1717787986740,47.2869,161.79,161.66,2.2887]
[1717787986943,45.0,161.79,161.67,2.2886]
[1717787987419,47.2869,161.79,161.66,2.2887]
[1717787987621,2.287,161.78,161.62,4.5785]
[1717787987829,6.5397,161.77,161.57,6.8699]
[1717787988022,6.5397,161.77,161.56,6.3593]
[1717787988023,2.2878,161.73,161.6,2.2894]
[1717787988229,552.5,161.76,161.56,6.3593]
[1717787988230,2.2883,161.69,161.56,8.6494]
[1717787988433,124.5754,161.74,161.58,2.2898]
[1717787988625,2.2882,161.7,161.58,2.2898]
[1717787988830,2.288,161.71,161.58,2.2898]
[1717787989046,51.5953,161.73,161.51,6.4819]
[1717787989225,51.5953,161.73,161.6,4.579]
[1717787989545,51.5953,161.73,161.56,25.73]
[1717787989546,6.5953,161.73,161.56,25.73]
[1717787989735,6.4787,161.74,161.68,2.2884]
[1717787991037,8.5004,161.78,161.66,2.2887]
[1717787991336,8.5004,161.78,161.67,2.2885]
[1717787991337,45.0,161.77,161.67,2.2885]
[1717787991537,45.0,161.77,161.63,2.2891]
[1717787991741,2.2874,161.76,161.64,2.2889]
[1717787991946,47.2872,161.77,161.65,2.2888]
[1717787992153,45.0,161.77,161.66,2.2887]
[1717787992365,47.2872,161.77,161.65,2.2888]
[1717787992659,2.2873,161.76,161.64,2.2889]
[1717787992843,2.2875,161.75,161.6,6.4222]
[1717787993046,47.2872,161.77,161.65,2.2887]
[1717787993846,45.0,161.77,161.66,2.2886]
[1717787994034,45.0,161.77,161.63,4.5783]
[1717787994234,6.2134,161.78,161.6,6.4222]
[1717787994439,8.5005,161.78,161.65,2.2888]
[1717787994763,2.2872,161.77,161.65,2.2888]
[1717787994969,8.5005,161.78,161.66,2.2887]
[1717787995163,6.2134,161.78,161.67,2.2885]
[1717787995671,45.0,161.77,161.66,2.2887]
[1717787996440,45.0,161.77,161.67,2.2886]
[1717787996648,45.0,161.77,161.66,2.2887]
[1717787998273,47.2872,161.77,161.66,2.2887]
[1717787998467,47.2872,161.77,161.61,9.1576]
[1717787998468,47.2872,161.77,161.65,2.2888]
[1717787998689,2.2875,161.75,161.63,2.2891]
[1717787998869,2.2875,161.75,161.59,9.1588]
[1717787999050,45.0,161.75,161.64,2.2889]
[1717787999371,47.2875,161.75,161.63,2.2891]
[1717788001354,6.4637,161.76,161.73,2.2877]
[1717788001678,6.4637,161.76,161.71,2.288]
[1717788001847,6.3462,161.75,161.62,4.5786]
[1717788002053,6.3462,161.75,161.56,6.0082]
[1717788002271,6.3462,161.75,161.63,4.5781]
[1717788002469,45.0,161.74,161.65,2.2888]
[1717788002677,45.0,161.74,161.66,2.2887]
[1717788002877,45.0,161.74,161.67,2.2885]
[1717788003049,45.0,161.74,161.66,2.2887]
[1717788003255,45.0,161.74,161.65,2.2888]
[1717788003677,45.0,161.74,161.66,2.2887]
[1717788003855,45.0,161.74,161.67,2.2885]
[1717788004058,45.0,161.74,161.66,2.2886]
[1717788004556,45.0,161.74,161.67,2.2885]
[1717788004755,6.3462,161.75,161.63,16.0235]
[1717788004955,6.3462,161.75,161.68,2.2884]
[1717788005173,6.3462,161.75,161.66,4.5774]
[1717788005552,6.3462,161.75,161.69,2.2882]
[1717788005867,6.3462,161.75,161.7,2.2881]
[1717788007384,6.5089,161.76,161.65,13.7331]
[1717788007559,45.0,161.75,161.63,4.5782]
[1717788007765,45.0,161.75,161.67,2.2885]
[1717788007975,45.0,161.75,161.66,2.2886]
[1717788008178,45.0,161.75,161.62,4.5786]
[1717788008386,6.2566,161.69,161.59,2.2896]
[1717788008592,45.0,161.68,161.6,2.2895]
[1717788008756,45.0,161.68,161.56,6.5505]
[1717788008961,45.0,161.68,161.55,9.161]
[1717788008962,15.2901,161.67,161.55,9.161]
[1717788009155,45.0,161.66,161.61,2.2893]
[1717788009380,15.2901,161.67,161.6,2.2895]
[1717788009683,124.84824352,161.75,161.51,6.123]
[1717788009684,6.1267,161.66,161.51,6.123]
[1717788009883,6.5598,161.71,161.51,6.123]
[1717788010096,45.0,161.7,161.63,2.2891]
[1717788010313,45.0,161.7,161.64,2.2889]
[1717788010607,45.0,161.7,161.6,6.8686]
[1717788010608,23.127,161.76,161.55,6.6572]
[1717788010768,23.127,161.76,161.56,15.38]
[1717788010972,23.127,161.76,161.58,25.75]
[1717788011195,23.127,161.76,161.69,2.2881]
[1717788011576,23.127,161.76,161.68,2.2884]
[1717788011786,23.127,161.76,161.67,2.2885]
[1717788011985,23.127,161.76,161.69,2.2882]
[1717788012187,23.127,161.76,161.68,2.2884]
[1717788012584,23.127,161.76,161.69,2.2883]
[1717788012785,45.0,161.75,161.65,4.5776]
[1717788012982,45.0,161.75,161.68,2.2884]
[1717788013276,45.0,161.75,161.65,2.2888]
[1717788013494,45.0,161.75,161.56,20.44791158]
[1717788013495,45.0,161.75,161.56,15.38]
[1717788013802,2.2879,161.72,161.61,2.2894]
[1717788014005,6.0691,161.71,161.61,2.2894]
[1717788014298,45.0,161.7,161.64,2.2889]
[1717788014500,6.6235,161.69,161.65,2.2888]
[1717788014695,6.6235,161.69,161.64,2.2889]
[1717788015071,6.6545,161.73,161.55,6.6572]
[1717788015281,6.6545,161.73,161.7,2.2881]
[1717788015488,6.6545,161.73,161.66,4.5774]
[1717788015489,6.6545,161.73,161.61,16.0259]
[1717788015699,6.6545,161.73,161.65,2.2887]
[1717788015910,6.6545,161.73,161.64,2.2889]
[1717788016387,6.6545,161.73,161.65,2.2888]
[1717788016822,45.0,161.72,161.65,2.2888]
[1717788017102,45.0,161.72,161.66,2.2887]
[1717788017280,45.0,161.72,161.65,2.2888]
[1717788017686,45.0,161.72,161.64,2.2889]
[1717788017902,45.0,161.72,161.65,2.2888]
[1717788018083,45.0,161.72,161.62,4.5784]
[1717788018287,51.4536,161.72,161.68,2.2884]
[1717788018484,15.0811,161.75,161.6,25.75]
[1717788018705,6.5349,161.74,161.7,2.288]
[1717788018894,6.5349,161.74,161.69,2.2882]
[1717788019095,21.616,161.75,161.63,4.578]
[1717788019292,21.616,161.75,161.64,4.578]
[1717788019607,21.616,161.75,161.68,2.2883]
[1717788019802,21.616,161.75,161.67,2.2885]
[1717788020106,21.616,161.75,161.65,2.2888]
[1717788020917,45.0,161.74,161.66,2.2887]
[1717788021111,45.0,161.74,161.65,2.2888]
[1717788021403,45.0,161.74,161.63,2.2891]
[1717788021404,47.2876,161.74,161.63,2.2891]
[1717788021714,6.5332,161.7,161.6,2.2895]
[1717788021886,6.5332,161.7,161.52,41.2299]
[1717788021887,45.0,161.69,161.54,6.8712]
[1717788022082,47.2884,161.69,161.55,4.5805]
[1717788022391,45.0,161.69,161.59,2.2896]
[1717788022710,45.0,161.69,161.6,2.2895]
[1717788023208,45.0,161.69,161.63,2.2891]
[1717788023409,6.119,161.7,161.56,25.75]
[1717788023587,6.119,161.71,161.6,25.75]
[1717788023786,6.119,161.71,161.68,2.2883]
[1717788024114,387.5,161.75,161.68,2.2883]
[1717788024115,393.619,161.75,161.68,2.2883]
[1717788024319,393.619,161.75,161.71,2.288]
[1717788024320,7.43360119,161.74,161.71,2.288]
[1717788024687,6.5587,161.74,161.68,2.2884]
[1717788024887,6.5587,161.74,161.61,77.30585292]
[1717788025103,7.43360051,161.73,161.65,2.2888]
[1717788025310,7.43360051,161.73,161.62,4.5786]
[1717788025519,45.0,161.72,161.63,2.2891]
[1717788025713,7.43360051,161.71,161.64,2.289]
[1717788026018,6.628,161.69,161.65,2.2888]
[1717788026200,51.628,161.68,161.64,2.2889]
[1717788027114,51.628,161.68,161.6,6.8686]
[1717788027115,51.628,161.68,161.63,2.2891]
[1717788029719,6.59,161.61,161.48,71.3559658]
[1717788029919,6.59,161.61,161.54,2.2904]
[1717788030219,45.0,161.6,161.5,4.582]
[1717788030422,45.0,161.6,161.53,2.2905]
[1717788031100,45.0,161.6,161.5,4.582]
[1717788031298,45.0,161.6,161.5,2.2909]
[1717788031500,15.8842,161.59,161.48,4.5825]
[1717788031918,45.0,161.58,161.49,4.5823]
[1717788032093,45.0,161.6,161.47,6.6425]
[1717788032302,6.59,161.61,161.52,16.0344]
[1717788032522,6.59,161.61,161.47,6.6425]
[1717788032721,16.0036,161.64,161.52,25.75]
[1717788032931,16.0036,161.64,161.59,2.2897]
[1717788033136,16.0036,161.64,161.62,2.2893]
[1717788033137,6.4556,161.64,161.62,2.2893]
[1717788033435,6.4556,161.64,161.6,2.2894]
[1717788033624,6.4718,161.68,161.63,2.2891]
[1717788033827,22.2719,161.72,161.63,2.2891]
[1717788034123,7.43609474,161.71,161.62,2.2893]
[1717788034305,7.43609474,161.71,161.6,2.2894]
[1717788034503,9.72409474,161.71,161.6,2.2894]
[1717788034726,7.43609474,161.7,161.6,2.2894]
[1717788034922,7.43609474,161.7,161.55,82.0]
[1717788035236,2.2882,161.7,161.56,4.5803]
[1717788035530,7.43609474,161.69,161.61,2.2894]
[1717788035731,7.43609474,161.71,161.61,2.2894]
[1717788035908,7.43609474,161.68,161.58,4.5797]
[1717788036103,22.2719,161.72,161.58,4.5797]
[1717788036329,7.43621182,161.71,161.61,2.2894]
[1717788036529,9.72421182,161.71,161.6,2.2895]
[1717788036828,7.43621182,161.7,161.6,2.2895]
[1717788037025,45.0,161.69,161.61,2.2894]
[1717788037219,22.2719,161.72,161.58,4.5796]
[1717788037426,7.43613281,161.71,161.61,2.2894]
[1717788037618,7.43613281,161.71,161.58,4.5796]
[1717788037820,7.43613281,161.71,161.62,2.2893]
[1717788038509,45.0,161.7,161.62,2.2893]
[1717788038711,45.0,161.7,161.63,2.2891]
[1717788038927,45.0,161.71,161.62,2.2892]
[1717788039233,22.2719,161.72,161.62,4.5783]
[1717788039537,22.2719,161.72,161.66,2.2886]
[1717788039538,7.43488894,161.71,161.66,2.2886]
[1717788039737,15.8001,161.72,161.64,2.2889]
[1717788040122,15.8001,161.72,161.65,2.2888]
[1717788040716,15.8001,161.72,161.64,2.2889]
[1717788041131,45.0,161.71,161.64,2.2889]
[1717788041337,45.0,161.71,161.61,11.4468]
[1717788041525,45.0,161.71,161.64,2.2889]
[1717788041837,45.0,161.71,161.61,4.5786]
[1717788042042,45.0,161.71,161.61,2.2894]
[1717788042344,45.0,161.71,161.62,2.2892]
[1717788042541,7.43525612,161.7,161.62,2.2892]
[1717788042741,7.43525612,161.7,161.59,4.5793]
[1717788042742,45.0,161.69,161.63,2.2891]
[1717788043323,45.0,161.69,161.62,2.2892]
[1717788043826,45.0,161.69,161.61,2.2894]
[1717788044031,45.0,161.69,161.59,2.2896]
[1717788044341,45.0,161.69,161.6,2.2895]
[1717788044855,45.0,161.69,161.61,2.2894]
[1717788046122,45.0,161.69,161.59,2.2896]
[1717788046323,7.43621401,161.68,161.59,2.2896]
[1717788046550,45.0,161.67,161.59,2.2896]
[1717788048444,45.0,161.67,161.57,4.5799]
[1717788048623,45.0,161.67,161.6,2.2894]
[1717788049644,45.0,161.67,161.6,2.2895]
[1717788050552,15.8001,161.72,161.6,2.2895]
[1717788050553,15.8001,161.72,161.6,4.5789]
[1717788050742,7.43580917,161.71,161.63,2.2891]
[1717788051269,7.43580917,161.71,161.62,2.2892]
[1717788051460,7.43580917,161.71,161.61,4.5787]
[1717788051640,7.43580917,161.71,161.64,2.289]
[1717788051968,7.43580917,161.71,161.64,2.2889]
[1717788052268,15.8001,161.72,161.64,2.2889]
[1717788052632,15.8001,161.72,161.65,2.2888]
[1717788052833,45.0,161.71,161.65,2.2888]
[1717788053326,15.8001,161.72,161.65,2.2888]
[1717788053531,15.8001,161.72,161.64,4.578]
[1717788053747,15.8001,161.72,161.68,2.2883]
[1717788054051,6.382,161.73,161.68,2.2883]
[1717788054237,6.382,161.73,161.67,2.2885]
[1717788054434,6.382,161.73,161.68,2.2884]
[1717788055029,6.382,161.73,161.67,2.2885]
[1717788055366,6.382,161.73,161.66,2.2887]
[1717788055531,6.382,161.73,161.64,2.2889]
[1717788055851,6.382,161.73,161.65,2.2888]
[1717788056150,52.43408879,161.72,161.65,2.2888]
[1717788056352,45.0,161.72,161.6,17.9813]
[1717788056656,45.0,161.72,161.64,2.2889]
[1717788056832,45.0,161.72,161.65,2.2888]
[1717788057449,7.43515656,161.71,161.59,6.8689]
[1717788057646,45.0,161.7,161.62,2.2892]
[1717788058350,7.43566159,161.69,161.63,2.2891]
[1717788058552,45.0,161.68,161.6,4.5792]
[1717788058766,45.0,161.68,161.62,2.2892]
[1717788058935,45.0,161.68,161.61,2.2893]
[1717788059446,45.0,161.68,161.6,2.2895]
[1717788059447,7.43603884,161.67,161.6,2.2895]
[1717788059650,6.2115,161.65,161.61,2.2894]
[1717788059829,21.9525,161.63,161.49,6.0547]
[1717788060030,45.0,161.62,161.58,2.2898]
[1717788060256,51.2115,161.62,161.49,6.0547]
[1717788060465,51.2115,161.62,161.54,2.2903]
[1717788060972,51.2115,161.62,161.53,2.2905]
[1717788061135,51.2115,161.62,161.52,2.2907]
[1717788061333,51.2115,161.62,161.53,2.2905]
[1717788061829,21.8081,161.67,161.6,2.2895]
[1717788062030,15.6849,161.65,161.6,2.2895]
[1717788062245,6.1232,161.64,161.61,2.2894]
[1717788062454,21.8081,161.7,161.63,2.289]
[1717788062652,7.43603906,161.69,161.59,4.5792]
[1717788063037,7.43603906,161.69,161.61,2.2894]
[1717788063341,7.43603906,161.69,161.6,2.2895]
[1717788063562,7.43603906,161.69,161.61,2.2894]
[1717788064041,7.43603906,161.69,161.54,6.1501]
[1717788064359,47.2885,161.68,161.58,2.2898]
[1717788064859,7.43603906,161.67,161.58,2.2898]
[1717788065031,45.0,161.66,161.55,16.0317]
[1717788065238,21.8081,161.7,161.63,2.2891]
[1717788065436,21.8081,161.7,161.5,6.1925]
[1717788065437,7.43666202,161.69,161.62,2.2892]
[1717788066055,7.43666202,161.69,161.57,9.1599]
[1717788066056,7.43666202,161.69,161.57,13.7398]
[1717788066437,7.43666202,161.69,161.59,2.2896]
[1717788066754,9.72496202,161.69,161.58,2.2897]
[1717788067049,52.43666202,161.68,161.59,2.2897]
[1717788067260,54.72506202,161.68,161.58,2.2897]
[1717788067441,7.43666202,161.67,161.58,2.2897]
[1717788067630,45.0,161.66,161.58,2.2897]
[1717788067838,7.43666202,161.65,161.59,2.2897]
[1717788068038,6.1132,161.63,161.59,2.2897]
[1717788068235,45.0,161.62,161.56,4.5803]
[1717788068552,7.43690485,161.68,161.61,2.2893]
[1717788068553,6.1132,161.68,161.61,2.2893]
[1717788068759,52.43647713,161.67,161.61,2.2893]
[1717788068959,45.0,161.67,161.6,2.2895]
[1717788069261,45.0,161.67,161.54,13.7423]
[1717788069469,7.43663368,161.66,161.58,2.2898]
[1717788069762,45.0,161.65,161.58,2.2898]
[1717788070061,45.0,161.65,161.59,2.2897]
[1717788070283,6.1132,161.64,161.59,2.2896]
[1717788070442,51.1461,161.63,161.59,2.2896]
[1717788070753,51.1461,161.63,161.58,2.2898]
[1717788070954,6.1461,161.62,161.59,2.2896]
[1717788071151,6.1461,161.62,161.58,2.2898]
[1717788071355,6.1461,161.62,161.57,2.2899]
[1717788071570,45.0,161.61,161.51,4.5816]
[1717788072076,6.1461,161.63,161.52,4.5814]
[1717788072077,45.0,161.62,161.52,4.5814]
[1717788072249,45.0,161.62,161.54,2.2903]
[1717788072965,45.0,161.62,161.56,2.2901]
[1717788073668,45.0,161.62,161.53,6.8715]
[1717788073856,6.4915,161.65,161.58,2.2898]
[1717788074059,13.92910385,161.64,161.59,2.2897]
[1717788074250,6.4915,161.64,161.59,2.2897]
[1717788074441,6.4915,161.65,161.58,2.2898]
[1717788074646,6.4915,161.65,161.55,4.5804]
[1717788074841,6.4915,161.65,161.56,9.1604]
[1717788075043,6.4915,161.65,161.6,2.2895]
[1717788075249,6.4915,161.64,161.53,9.1621]
[1717788075767,6.4915,161.64,161.55,4.5806]
[1717788075952,6.4915,161.64,161.5,10.7743]
[1717788076157,2.2893,161.62,161.52,2.2906]
[1717788076659,2.2892,161.63,161.53,2.2905]
[1717788076855,7.43834569,161.62,161.47,4.5828]
[1717788077054,2.2896,161.6,161.5,2.2909]
[1717788077267,2.2896,161.6,161.51,2.2908]
[1717788077658,8.3388,161.59,161.5,2.2909]
[1717788077851,15.1023,161.57,161.5,2.2909]
[1717788078174,15.1023,161.57,161.49,2.2911]
[1717788078175,45.0,161.56,161.49,2.2911]
[1717788078850,45.0,161.56,161.47,4.5828]
[1717788079081,6.5624,161.55,161.51,2.2908]
[1717788079365,6.5624,161.55,161.47,4.5828]
[1717788079366,51.5624,161.54,161.42,6.0773]
[1717788079568,51.5624,161.54,161.46,2.2914]
[1717788079750,51.5624,161.54,161.42,6.0773]
[1717788079956,51.5624,161.54,161.5,2.291]
[1717788080276,51.5624,161.54,161.5,2.2909]
[1717788080664,16.6097,161.57,161.53,2.2905]
[1717788080969,16.6097,161.57,161.43,60.41699421]
[1717788080970,23.1002,161.57,161.48,9.1648]
[1717788081174,6.4905,161.57,161.53,2.2905]
[1717788081476,6.4905,161.57,161.48,9.1648]
[1717788081776,6.4905,161.57,161.47,4.5826]
[1717788081979,410.4269,161.61,161.49,9.1644]
[1717788082183,6.3872,161.61,161.47,6.6419]
[1717788082396,256.1,161.63,161.61,2.2893]
[1717788082680,256.1,161.63,161.52,25.76]
[1717788082865,256.1,161.63,161.57,2.2899]
[1717788083067,256.1,161.63,161.56,2.2901]
[1717788083268,256.1,161.63,161.59,2.2896]
[1717788083656,256.1,161.63,161.52,82.0]
[1717788083860,256.1,161.63,161.62,2.2893]
[1717788084961,6.007,161.62,161.57,2.2899]
[1717788085165,262.107,161.63,161.59,2.2896]
[1717788085373,262.107,161.63,161.57,2.2898]
[1717788085590,262.107,161.63,161.59,2.2896]
[1717788086094,262.107,161.63,161.55,11.451]
[1717788086095,256.1,161.63,161.62,2.2893]
[1717788086686,387.5,161.72,161.57,6.2693]
[1717788086868,387.5,161.71,161.62,4.5786]
[1717788087069,393.6732,161.71,161.67,2.2886]
[1717788087362,262.2195,161.73,161.68,2.2884]
[1717788087582,262.2195,161.73,161.63,4.578]
[1717788087767,262.2195,161.73,161.66,2.2887]
[1717788088091,262.2195,161.73,161.62,60.34596817]
[1717788088305,2.2879,161.72,161.62,60.34596817]
[1717788088471,52.43447737,161.72,161.65,2.2888]
[1717788088801,45.0,161.72,161.64,2.2889]
[1717788088981,45.0,161.72,161.63,2.2891]
[1717788089361,44.5,161.72,161.62,60.34596817]
[1717788089558,44.5,161.72,161.64,2.289]
[1717788090185,262.2195,161.73,161.67,2.2884]
[1717788090790,262.2195,161.73,161.68,2.2884]
[1717788090997,262.2195,161.73,161.67,2.2885]
[1717788091369,262.2195,161.73,161.68,2.2884]
[1717788091569,262.2195,161.73,161.66,2.2887]
[1717788091971,45.0,161.72,161.66,2.2887]
[1717788092179,262.2195,161.73,161.63,9.1566]
[1717788092400,6.2072,161.72,161.65,2.2888]
[1717788092799,6.2072,161.72,161.66,2.2887]
[1717788093311,6.2072,161.72,161.67,2.2885]
[1717788093475,45.0,161.71,161.66,2.2887]
[1717788093799,45.0,161.71,161.65,4.5777]
[1717788094007,45.0,161.72,161.67,2.2885]
[1717788094374,45.0,161.72,161.65,2.2888]
[1717788094586,45.0,161.72,161.62,64.92426817]
[1717788094786,45.0,161.72,161.65,2.2887]
[1717788094971,45.0,161.72,161.66,2.2887]
[1717788095381,45.0,161.72,161.67,2.2886]
[1717788095597,256.1,161.73,161.62,60.34596817]
[1717788095895,393.9398,161.76,161.62,60.34596817]
[1717788095896,6.4398,161.76,161.69,2.2882]
[1717788096107,6.4398,161.76,161.7,2.2881]
[1717788096274,15.6622,161.8,161.64,6.2932]
[1717788096472,6.5039,161.8,161.68,4.5768]
[1717788096699,7.43274664,161.79,161.73,2.2877]
[1717788096871,7.43274664,161.79,161.69,4.5766]
[1717788096872,7.43274664,161.79,161.7,4.5762]
[1717788097074,7.43274664,161.8,161.7,4.5762]
[1717788097489,7.43274664,161.8,161.73,2.2876]
[1717788098191,7.43274664,161.8,161.75,2.2874]
[1717788098417,0.120412,161.82,161.64,6.2932]
[1717788098572,7.43215376,161.81,161.78,2.2869]
[1717788098769,7.43215376,161.81,161.8,2.2867]
[1717788098989,0.120412,161.82,161.76,11.4362]
[1717788099199,0.120412,161.82,161.81,2.2866]
[1717788099583,21.2944,161.81,161.68,6.1359]
[1717788099793,21.2944,161.81,161.71,4.576]
[1717788099992,21.2944,161.81,161.73,2.2877]
[1717788100194,21.2944,161.81,161.68,6.1359]
[1717788100513,2.2872,161.77,161.67,2.2885]
[1717788100685,45.0,161.8,161.63,76.03423458]
[1717788101019,47.2868,161.8,161.7,2.288]
[1717788101380,45.0,161.8,161.71,2.288]
[1717788101581,45.0,161.8,161.69,4.5764]
[1717788101815,45.0,161.8,161.73,2.2876]
[1717788102322,45.0,161.8,161.63,66.87763458]
[1717788102481,45.0,161.8,161.73,2.2876]
[1717788102894,45.0,161.8,161.63,66.87763458]
[1717788103103,2.287,161.78,161.68,2.2883]
[1717788103690,120.0,161.78,161.68,2.2883]
[1717788104008,45.0,161.77,161.68,2.2883]
[1717788104486,45.0,161.77,161.66,2.2886]
[1717788104811,41.2234,161.75,161.64,2.289]
[1717788105105,47.2876,161.74,161.65,2.2888]
[1717788105288,47.2876,161.74,161.64,2.2889]
[1717788105289,434.7876,161.74,161.64,2.2889]
[1717788105615,434.7876,161.74,161.65,2.2888]
[1717788105783,6.1235,161.73,161.58,4.5797]
[1717788105985,45.0,161.72,161.63,2.289]
[1717788106206,45.0,161.72,161.64,2.289]
[1717788106517,45.0,161.72,161.65,2.2888]
[1717788106805,45.0,161.72,161.61,4.5788]
[1717788106806,45.0,161.72,161.66,2.2886]
[1717788107221,45.0,161.72,161.65,2.2888]
[1717788107708,45.0,161.72,161.64,2.289]
[1717788108096,45.0,161.72,161.62,4.5785]
[1717788108292,45.0,161.72,161.65,2.2887]
[1717788108488,6.1235,161.73,161.63,4.5783]
[1717788108794,6.1235,161.73,161.68,2.2884]
[1717788108991,22.4068,161.79,161.66,9.155]
[1717788109200,7.43432452,161.78,161.75,2.2873]
[1717788109406,22.4068,161.79,161.73,2.2876]
[1717788109606,22.4068,161.79,161.63,15.7591]
[1717788109909,22.4068,161.79,161.73,2.2876]
[1717788110086,22.4068,161.79,161.73,2.2877]
[1717788110792,25.870412,161.82,161.74,2.2875]
[1717788110793,0.120412,161.82,161.74,2.2875]
[1717788111594,0.120412,161.82,161.67,6.4467]
[1717788111808,0.120412,161.82,161.74,2.2875]
[1717788112115,0.120412,161.82,161.73,2.2877]
[1717788112298,0.120412,161.82,161.68,9.1536]
[1717788112614,2.287,161.78,161.65,13.733]
[1717788112910,33.18190656,161.81,161.65,13.733]
[1717788112911,2.2869,161.79,161.69,2.2883]
[1717788113116,2.2869,161.79,161.69,2.2882]
[1717788113496,45.0,161.8,161.71,2.288]
[1717788113921,45.0,161.8,161.67,9.1544]
[1717788114121,45.0,161.8,161.69,4.5766]
[1717788114419,45.0,161.8,161.72,2.2878]
[1717788114622,47.2868,161.8,161.67,16.02]
[1717788114803,47.2868,161.8,161.67,9.1544]
[1717788115005,47.2868,161.8,161.7,2.2881]
[1717788115217,47.2868,161.8,161.71,2.288]
[1717788115702,47.2868,161.8,161.7,2.2881]
[1717788115903,2.2869,161.79,161.7,2.2881]
[1717788116124,45.0,161.8,161.71,2.2879]
[1717788116327,47.2868,161.8,161.7,2.2881]
[1717788116629,45.0,161.8,161.68,4.5768]
[1717788116813,45.0,161.8,161.71,2.2879]
[1717788117133,45.0,161.8,161.72,2.2878]
[1717788117297,0.120412,161.82,161.63,22.2058]
[1717788117593,0.120412,161.82,161.73,2.2876]
[1717788117801,0.120412,161.82,161.68,4.5766]
[1717788118016,28.0367,161.81,161.68,4.5766]
[1717788118224,2.2871,161.78,161.68,2.2883]
[1717788118404,2.2869,161.79,161.66,4.5774]
[1717788118598,387.5,161.8,161.63,22.2058]
[1717788118799,387.5,161.8,161.72,2.2878]
[1717788119124,45.0,161.79,161.72,2.2878]
[1717788119426,47.287,161.79,161.7,2.2881]
[1717788119927,45.0,161.79,161.7,2.2881]
[1717788120427,47.2869,161.79,161.7,2.2881]
[1717788120627,387.5,161.8,161.75,2.2874]
[1717788120835,6.2818,161.8,161.69,9.1532]
[1717788121032,6.2818,161.8,161.71,4.5759]